bitfinex/quotes_BTCUSD_20251009
["timestamp","ask_amount","ask_price","bid_price","bid_amount"]
[1760007151819,0.49751051,122200.0,122190.0,0.00095994]
[1760007153597,0.26571051,122200.0,122190.0,0.00095994]
[1760007153845,0.49747051,122200.0,122190.0,0.00095994]
[1760007154813,0.26571051,122200.0,122190.0,0.00095994]
[1760007155041,0.49747051,122200.0,122190.0,0.00095994]
[1760007157118,0.26571051,122200.0,122190.0,0.00095994]
[1760007157357,0.49743051,122200.0,122190.0,0.00095994]
[1760007159645,0.26571051,122200.0,122190.0,0.00095994]
[1760007159899,0.49743051,122200.0,122190.0,0.00095994]
[1760007161501,0.47285205,122200.0,122190.0,0.00095994]
[1760007162181,0.72755131,122200.0,122190.0,0.00095994]
[1760007163291,0.49583131,122200.0,122190.0,0.00095994]
[1760007163510,0.72755131,122200.0,122190.0,0.00095994]
[1760007163726,0.98225057,122200.0,122190.0,0.00095994]
[1760007165496,0.72755131,122200.0,122190.0,0.00095994]
[1760007165922,0.98225057,122200.0,122190.0,0.00095994]
[1760007167612,1.06537263,122200.0,122190.0,0.00095994]
[1760007167846,0.83365263,122200.0,122190.0,0.00095994]
[1760007168062,1.06541263,122200.0,122190.0,0.00095994]
[1760007168626,1.09041262,122200.0,122190.0,0.00095994]
[1760007168832,0.85865262,122200.0,122190.0,0.00095994]
[1760007169026,1.17553262,122200.0,122190.0,0.00095994]
[1760007170332,1.19083785,122200.0,122190.0,0.00095994]
[1760007170535,1.25287597,122200.0,122190.0,0.00095994]
[1760007171648,1.25615356,122200.0,122190.0,0.00095994]
[1760007174085,0.93927356,122200.0,122190.0,0.00095994]
[1760007174288,1.25615356,122200.0,122190.0,0.00095994]
[1760007174555,0.36783692,122200.0,122190.0,0.00095994]
[1760007174764,0.93941618,122200.0,122190.0,0.00095994]
[1760007175651,0.25306577,122200.0,122190.0,0.00095994]
[1760007175851,0.73624744,122200.0,122190.0,0.00095994]
[1760007176852,0.50448744,122200.0,122190.0,0.00095994]
[1760007177092,0.9909467,122200.0,122190.0,0.00095994]
[1760007177712,0.7591867,122200.0,122190.0,0.00095994]
[1760007177964,1.0709435,122200.0,122190.0,0.00095994]
[1760007178390,0.8391835,122200.0,122190.0,0.00095994]
[1760007178615,1.0709435,122200.0,122190.0,0.00095994]
[1760007178817,1.07422087,122200.0,122190.0,0.00095994]
[1760007181457,1.09716013,122200.0,122190.0,0.00095994]
[1760007181656,1.37689766,122200.0,122190.0,0.00095994]
[1760007181864,0.8904384,122200.0,122190.0,0.00095994]
[1760007182066,1.2073184,122200.0,122190.0,0.00095994]
[1760007184273,1.20731677,122200.0,122190.0,0.00095994]
[1760007184484,0.89043677,122200.0,122190.0,0.00095994]
[1760007184663,1.20731677,122200.0,122190.0,0.00095994]
[1760007185610,1.20531677,122200.0,122190.0,0.00095994]
[1760007185813,1.20431677,122200.0,122190.0,0.00095994]
[1760007186022,1.45901603,122200.0,122190.0,0.00095994]
[1760007186234,1.46001603,122200.0,122190.0,0.00095994]
[1760007186374,1.14313603,122200.0,122190.0,0.00095994]
[1760007186582,1.46001603,122200.0,122190.0,0.00095994]
[1760007186788,1.20531677,122200.0,122190.0,0.00095994]
[1760007187029,1.20731677,122200.0,122190.0,0.00095994]
[1760007187441,1.20631677,122200.0,122190.0,0.00095994]
[1760007187653,1.20431677,122200.0,122190.0,0.00095994]
[1760007187874,1.20531677,122200.0,122190.0,0.00095994]
[1760007188132,1.20731677,122200.0,122190.0,0.00095994]
[1760007189030,1.12219677,122200.0,122190.0,0.00095994]
[1760007189251,1.20731677,122200.0,122190.0,0.00095994]
[1760007189738,0.36116146,122200.0,122190.0,0.00095994]
[1760007189937,0.56666818,122200.0,122190.0,0.00095994]
[1760007190159,0.33490818,122200.0,122190.0,0.00095994]
[1760007190365,0.56666818,122200.0,122190.0,0.00095994]
[1760007190619,0.56366818,122200.0,122190.0,0.00095994]
[1760007190787,0.64366498,122200.0,122190.0,0.00095994]
[1760007190991,0.64666498,122200.0,122190.0,0.00095994]
[1760007191434,0.64466498,122200.0,122190.0,0.00095994]
[1760007191674,0.32778498,122200.0,122190.0,0.00095994]
[1760007191888,0.81624424,122200.0,122190.0,0.00095994]
[1760007192112,0.16666612,122200.0,122190.0,0.46035871]
[1760007192330,0.16566612,122200.0,122190.0,0.49542871]
[1760007192550,0.003,122200.0,122190.0,0.49542871]
[1760007192794,0.23476,122200.0,122190.0,0.49542871]
[1760007193310,0.1636606,122210.0,122200.0,0.16366612]
[1760007193311,0.3954206,122210.0,122200.0,0.16366612]
[1760007193527,0.3954206,122210.0,122200.0,0.20468612]
[1760007193763,0.3954206,122210.0,122200.0,0.45938538]
[1760007194031,0.3954206,122210.0,122200.0,0.20468612]
[1760007194272,0.16365272,122210.0,122200.0,0.49445538]
[1760007194502,0.39641272,122210.0,122200.0,0.49445538]
[1760007195396,0.16465272,122210.0,122200.0,0.29571926]
[1760007195651,0.16366612,122200.0,122190.0,0.3078792]
[1760007195887,0.16366612,122200.0,122190.0,0.01810994]
[1760007196331,0.39546612,122200.0,122190.0,0.01810994]
[1760007196556,0.65020538,122200.0,122190.0,0.00095994]
[1760007196997,0.65024538,122200.0,122190.0,0.00095994]
[1760007197229,0.73024218,122200.0,122190.0,0.00095994]
[1760007197458,1.0680635,122200.0,122190.0,0.00095994]
[1760007197691,1.0681035,122200.0,122190.0,0.00095994]
[1760007197936,1.1532235,122200.0,122190.0,0.00095994]
[1760007199004,1.1542235,122200.0,122190.0,0.00095994]
[1760007200154,0.64482498,122200.0,122190.0,0.00095994]
[1760007200408,0.33390818,122200.0,122190.0,0.00095994]
[1760007200630,0.82048744,122200.0,122190.0,0.00095994]
[1760007202052,0.50348744,122200.0,122190.0,0.00095994]
[1760007202269,0.48070818,122200.0,122190.0,0.00095994]
[1760007202668,0.48070818,122200.0,122190.0,0.02482994]
[1760007202669,0.32878498,122200.0,122190.0,0.02482994]
[1760007202875,0.16566612,122200.0,122190.0,0.3317492]
[1760007203074,0.39758612,122200.0,122190.0,0.3317492]
[1760007204156,0.16566612,122200.0,122190.0,0.00095994]
[1760007204367,0.65232538,122200.0,122190.0,0.00095994]
[1760007204540,0.39762612,122200.0,122190.0,0.00095994]
[1760007205306,0.39762612,122200.0,122190.0,0.02408994]
[1760007205506,0.16566612,122200.0,122190.0,0.04083994]
[1760007205716,0.39762612,122200.0,122190.0,0.07712994]
[1760007206140,0.39762612,122200.0,122190.0,0.04083994]
[1760007208241,0.24566292,122200.0,122190.0,0.00095994]
[1760007208455,0.50036218,122200.0,122190.0,0.00095994]
[1760007208888,0.73232218,122200.0,122190.0,0.00095994]
[1760007209910,0.16566612,122200.0,122190.0,0.00095994]
[1760007210118,0.39758612,122200.0,122190.0,0.00095994]
[1760007212086,0.65228538,122200.0,122190.0,0.00095994]
[1760007212580,0.16566612,122200.0,122190.0,0.00095994]
[1760007212782,0.65224538,122200.0,122190.0,0.00095994]
[1760007213425,0.65224538,122200.0,122190.0,0.02408994]
[1760007213637,0.39754612,122200.0,122190.0,0.04083994]
[1760007213838,0.39754612,122200.0,122190.0,0.07712994]
[1760007214029,0.39754612,122200.0,122190.0,0.04083994]
[1760007215545,0.002,122200.0,122190.0,0.49550871]
[1760007215953,0.16566612,122200.0,122190.0,0.49550871]
[1760007216395,0.16566612,122200.0,122190.0,0.24080945]
[1760007217206,0.16566612,122200.0,122190.0,0.49550871]
[1760007217809,0.16566612,122200.0,122190.0,0.24080945]
[1760007217999,0.16566612,122200.0,122190.0,0.49550871]
[1760007218196,0.16566612,122200.0,122190.0,0.24080945]
[1760007218671,0.16566612,122200.0,122190.0,0.49550871]
[1760007219262,0.16566612,122200.0,122190.0,0.24080945]
[1760007219698,0.16566612,122200.0,122190.0,0.47272945]
[1760007221249,0.16566612,122200.0,122190.0,0.07712994]
[1760007221455,0.16566612,122200.0,122190.0,0.01770994]
[1760007221792,0.16566612,122200.0,122190.0,0.2208874]
[1760007221991,0.16566612,122200.0,122190.0,0.43639945]
[1760007222399,0.16566612,122200.0,122190.0,0.47268945]
[1760007223947,0.16566612,122200.0,122190.0,0.81222983]
[1760007223948,0.002,122200.0,122190.0,0.81222983]
[1760007225010,0.16566612,122200.0,122190.0,0.47268945]
[1760007225520,0.16566612,122200.0,122190.0,0.48099843]
[1760007225898,0.002,122200.0,122190.0,0.48099843]
[1760007226289,0.16566612,122200.0,122190.0,0.24080945]
[1760007226509,0.16566612,122200.0,122190.0,0.47264945]
[1760007226894,0.002,122200.0,122190.0,0.47264945]
[1760007227099,0.17938161,122200.0,122190.0,0.27267994]
[1760007227308,0.17938161,122200.0,122190.0,0.04083994]
[1760007227509,0.17938161,122200.0,122190.0,0.43635945]
[1760007227998,0.17938161,122200.0,122190.0,0.20451945]
[1760007228198,0.17938161,122200.0,122190.0,0.43631945]
[1760007229112,0.16566612,122200.0,122190.0,0.43631945]
[1760007230161,0.16566612,122200.0,122190.0,0.20451945]
[1760007230374,0.16566612,122200.0,122190.0,0.43631945]
[1760007230555,0.16566612,122200.0,122190.0,0.20451945]
[1760007230758,0.16566612,122200.0,122190.0,0.43627945]
[1760007231227,0.002,122200.0,122190.0,0.23844945]
[1760007231430,0.002,122200.0,122190.0,0.80974983]
[1760007231645,0.002,122200.0,122190.0,0.66111189]
[1760007231857,0.002,122200.0,122190.0,0.89291189]
[1760007232698,0.001,122200.0,122190.0,0.89291189]
[1760007232880,0.16365278,122210.0,122200.0,0.16366612]
[1760007233079,0.16365278,122210.0,122200.0,0.22081273]
[1760007233287,0.16365278,122210.0,122200.0,0.23837612]
[1760007234351,0.16365278,122210.0,122200.0,0.47013612]
[1760007234609,0.16365278,122210.0,122200.0,0.23837612]
[1760007234846,0.00136267,122220.0,122210.0,0.16365272]
[1760007235054,0.00136267,122220.0,122210.0,0.18680272]
[1760007235256,0.00136267,122220.0,122210.0,0.20443272]
[1760007236282,0.00236267,122220.0,122210.0,0.20443272]
[1760007236484,0.00236267,122220.0,122210.0,0.23783272]
[1760007237090,0.00236267,122220.0,122210.0,0.20443272]
[1760007237296,0.00336267,122220.0,122210.0,0.20443272]
[1760007239109,0.00336267,122220.0,122210.0,0.23783272]
[1760007239252,0.00336267,122220.0,122210.0,0.46955272]
[1760007240530,0.00336267,122220.0,122210.0,0.23783272]
[1760007240747,0.00336267,122220.0,122210.0,0.46955272]
[1760007241168,0.00336267,122220.0,122210.0,0.8090931]
[1760007241329,0.00336267,122220.0,122210.0,0.23783272]
[1760007241601,0.00336267,122220.0,122210.0,0.46955272]
[1760007241819,0.00336267,122220.0,122210.0,0.5773731]
[1760007242123,0.00336267,122220.0,122210.0,0.8090931]
[1760007242915,0.00236267,122220.0,122210.0,0.89221516]
[1760007243498,0.00236267,122220.0,122210.0,0.66049516]
[1760007243776,0.00136267,122220.0,122210.0,0.89221516]
[1760007245422,0.00136267,122220.0,122210.0,0.66049516]
[1760007245630,0.00136267,122220.0,122210.0,0.89221516]
[1760007247577,0.00136267,122220.0,122210.0,0.95356713]
[1760007248428,0.00136267,122220.0,122210.0,0.72184713]
[1760007248845,0.00136267,122220.0,122210.0,0.63771478]
[1760007249255,0.00136267,122220.0,122210.0,0.66049516]
[1760007249666,0.00136267,122220.0,122210.0,0.97725516]
[1760007249866,0.00136267,122220.0,122210.0,0.74557516]
[1760007250270,0.00136267,122220.0,122210.0,0.97725516]
[1760007250842,0.00136267,122220.0,122210.0,0.74557516]
[1760007251041,0.00136267,122220.0,122210.0,0.97725516]
[1760007251288,0.00136267,122220.0,122210.0,0.66049516]
[1760007251486,0.00136267,122220.0,122210.0,0.97725516]
[1760007252155,0.00136267,122220.0,122210.0,1.03733088]
[1760007252383,0.00136267,122220.0,122210.0,0.6977905]
[1760007252788,0.00136267,122220.0,122210.0,0.3810305]
[1760007253009,0.00136267,122220.0,122210.0,0.6977905]
[1760007253879,0.00136267,122220.0,122210.0,0.3810305]
[1760007254069,0.00136267,122220.0,122210.0,1.03733088]
[1760007255182,0.00136267,122220.0,122210.0,1.06189616]
[1760007256527,0.00136267,122220.0,122210.0,0.74513616]
[1760007256734,0.00136267,122220.0,122210.0,1.40233616]
[1760007256905,0.00136267,122220.0,122210.0,0.97681616]
[1760007257081,0.00136267,122220.0,122210.0,0.74513616]
[1760007257285,0.00136267,122220.0,122210.0,1.06189616]
[1760007257691,0.00136267,122220.0,122210.0,0.74513616]
[1760007257894,0.00136267,122220.0,122210.0,1.06189616]
[1760007258723,0.00136267,122220.0,122210.0,0.74513616]
[1760007258937,0.00136267,122220.0,122210.0,1.06189616]
[1760007260027,0.00136267,122220.0,122210.0,1.06185616]
[1760007260878,0.00136267,122220.0,122210.0,0.83021616]
[1760007261084,0.00136267,122220.0,122210.0,1.06185616]
[1760007263057,0.00136267,122220.0,122210.0,0.83021616]
[1760007263302,0.00136267,122220.0,122210.0,1.06185616]
[1760007264624,0.00136267,122220.0,122210.0,0.72231578]
[1760007264854,0.00136267,122220.0,122210.0,1.06185616]
[1760007266592,0.00136267,122220.0,122210.0,0.83021616]
[1760007266801,0.00136267,122220.0,122210.0,1.06185616]
[1760007267006,0.00136267,122220.0,122210.0,1.06271578]
[1760007267208,0.0090136,122220.0,122210.0,1.40225616]
[1760007268585,0.00136267,122220.0,122210.0,1.40225616]
[1760007272242,0.00136267,122220.0,122210.0,1.17061616]
[1760007272476,0.00136267,122220.0,122210.0,1.40225616]
[1760007272688,0.00136267,122220.0,122210.0,1.17061616]
[1760007272927,0.00136267,122220.0,122210.0,1.40225616]
[1760007273512,0.00136267,122220.0,122210.0,1.17061616]
[1760007273718,0.00136267,122220.0,122210.0,1.40225616]
[1760007274710,0.35485382,122270.0,122260.0,0.1635858]
[1760007274913,0.18655032,122270.0,122260.0,0.42098023]
[1760007275723,0.5260907,122270.0,122260.0,0.18934023]
[1760007275953,0.1870535,122270.0,122260.0,0.42098023]
[1760007276303,0.1880535,122270.0,122260.0,0.42098023]
[1760007276511,0.1900535,122270.0,122260.0,0.42098023]
[1760007276660,0.52959388,122270.0,122260.0,0.39908023]
[1760007278487,0.17125026,122260.0,122250.0,0.39523918]
[1760007278691,0.51079064,122260.0,122250.0,0.39523918]
[1760007279107,0.00766446,122260.0,122250.0,0.18549918]
[1760007279350,0.00766446,122260.0,122250.0,0.88989162]
[1760007280143,0.00866446,122260.0,122250.0,0.65825162]
[1760007280370,0.01070133,122260.0,122250.0,0.8981397]
[1760007280683,0.00970133,122260.0,122250.0,0.6664997]
[1760007280882,0.00970133,122260.0,122250.0,0.8980997]
[1760007281428,0.00970133,122260.0,122250.0,0.9831797]
[1760007281636,0.01070133,122260.0,122250.0,0.7515797]
[1760007281845,0.00970133,122260.0,122250.0,0.9831797]
[1760007282579,0.00970133,122260.0,122250.0,0.6664997]
[1760007282785,0.00969053,122260.0,122250.0,0.9831797]
[1760007282983,0.00969053,122260.0,122250.0,0.8980997]
[1760007283194,0.00969053,122260.0,122250.0,0.9831797]
[1760007284114,0.00969053,122260.0,122250.0,0.7515797]
[1760007284348,0.00969053,122260.0,122250.0,0.89797319]
[1760007284757,0.00969053,122260.0,122250.0,0.41769401]
[1760007284968,0.17327633,122260.0,122250.0,0.73437401]
[1760007285597,0.4613454,122260.0,122250.0,0.03905]
[1760007285813,0.16359918,122250.0,122240.0,0.08508]
[1760007286025,0.42558671,122250.0,122240.0,0.31668]
[1760007286231,0.42558671,122250.0,122240.0,0.1247]
[1760007286439,0.42558671,122250.0,122240.0,0.3563]
[1760007286667,0.50558351,122250.0,122240.0,0.31668]
[1760007287485,0.50558351,122250.0,122240.0,0.33963]
[1760007287671,0.50558351,122250.0,122240.0,0.3563]
[1760007287807,0.50558351,122250.0,122240.0,0.01667]
[1760007288014,0.16361256,122240.0,122230.0,0.01715]
[1760007288255,0.16361256,122240.0,122230.0,0.39791206]
[1760007288412,0.16361256,122240.0,122230.0,0.42086206]
[1760007288753,0.16361256,122240.0,122230.0,0.45304206]
[1760007289196,0.16361256,122240.0,122230.0,0.15540206]
[1760007289397,0.16361256,122240.0,122230.0,0.47308206]
[1760007289736,0.16361256,122240.0,122230.0,0.47508206]
[1760007289993,0.16361256,122240.0,122230.0,0.47208206]
[1760007290717,0.16361256,122240.0,122230.0,0.07228]
[1760007290919,0.48410067,122240.0,122230.0,0.35678]
[1760007291163,0.48410067,122240.0,122230.0,0.2717]
[1760007291377,0.2297668,122240.0,122230.0,0.2717]
[1760007291587,0.16361256,122240.0,122230.0,0.2717]
[1760007291833,0.16361256,122240.0,122230.0,0.0401]
[1760007292185,0.16362595,122230.0,122220.0,0.04933]
[1760007292387,0.16362595,122230.0,122220.0,0.89005526]
[1760007292604,0.16461256,122240.0,122220.0,0.89005526]
[1760007292806,0.16561256,122240.0,122230.0,0.24827]
[1760007293121,0.16361256,122240.0,122230.0,0.28045]
[1760007293326,0.16361256,122240.0,122230.0,0.3034]
[1760007293864,0.2305848,122240.0,122230.0,0.27122]
[1760007294054,0.2315848,122240.0,122230.0,0.03962]
[1760007294274,0.48591867,122240.0,122230.0,0.27122]
[1760007294502,0.41894643,122240.0,122230.0,0.27122]
[1760007295324,0.41894643,122240.0,122230.0,0.2316]
[1760007295325,0.41994643,122240.0,122230.0,0.2316]
[1760007297005,0.42096503,122240.0,122230.0,0.27031]
[1760007297449,0.16663116,122240.0,122230.0,0.27031]
[1760007299500,0.16663116,122240.0,122230.0,0.30259]
[1760007300271,0.16663116,122240.0,122230.0,0.27031]
[1760007300469,0.16362595,122230.0,122220.0,0.2639096]
[1760007300674,0.16362595,122230.0,122220.0,0.60301997]
[1760007300934,0.16362595,122230.0,122220.0,0.5198997]
[1760007301140,0.41795982,122230.0,122220.0,0.12466037]
[1760007301560,0.16362595,122230.0,122220.0,0.35626037]
[1760007301928,0.16362595,122230.0,122220.0,0.37899424]
[1760007302148,0.17177913,122250.0,122230.0,0.16362595]
[1760007302353,0.17177913,122250.0,122240.0,0.28667125]
[1760007302615,0.17177913,122250.0,122240.0,0.30259]
[1760007303505,0.17277913,122250.0,122240.0,0.30259]
[1760007303720,0.16361256,122240.0,122230.0,0.01633]
[1760007303923,0.41794643,122240.0,122230.0,0.31668]
[1760007304358,0.41794643,122240.0,122230.0,0.48030595]
[1760007304579,0.41794643,122240.0,122230.0,0.50268595]
[1760007305331,0.17377913,122250.0,122240.0,0.16361256]
[1760007305561,0.16361256,122240.0,122230.0,0.78324982]
[1760007305784,0.16361256,122240.0,122230.0,0.55129595]
[1760007305981,0.16361256,122240.0,122230.0,0.80562982]
[1760007306415,0.16463116,122240.0,122230.0,0.80562982]
[1760007306656,0.22360372,122240.0,122230.0,0.28741595]
[1760007306839,0.47793759,122240.0,122230.0,0.01633]
[1760007306985,0.47793759,122240.0,122230.0,0.31668]
[1760007307642,0.47793759,122240.0,122230.0,0.48030595]
[1760007307862,0.22360372,122240.0,122230.0,0.50268595]
[1760007308064,0.16463116,122240.0,122230.0,0.55129595]
[1760007308365,0.16463116,122240.0,122230.0,0.80562982]
[1760007308568,0.16563116,122240.0,122230.0,0.80562982]
[1760007308735,0.16663116,122240.0,122230.0,0.80562982]
[1760007309817,0.16663116,122240.0,122230.0,0.38767]
[1760007310162,0.21592204,122240.0,122230.0,0.12379]
[1760007310364,0.16362595,122230.0,122220.0,0.21311893]
[1760007310571,0.16362595,122230.0,122220.0,0.77423357]
[1760007310779,0.16413529,122230.0,122220.0,0.77423357]
[1760007310997,0.16413529,122230.0,122220.0,0.2032197]
[1760007311197,0.16413529,122230.0,122220.0,0.80651357]
[1760007312438,0.16413529,122230.0,122220.0,0.77423357]
[1760007313017,0.7105069,122230.0,122220.0,5.037e-05]
[1760007313461,0.81820165,122230.0,122220.0,5.037e-05]
[1760007313677,1.04984165,122230.0,122220.0,5.037e-05]
[1760007313902,1.05749582,122230.0,122220.0,5.037e-05]
[1760007314114,0.82585582,122230.0,122220.0,5.037e-05]
[1760007314327,1.05749582,122230.0,122220.0,5.037e-05]
[1760007315070,1.05849582,122230.0,122220.0,5.037e-05]
[1760007315249,1.06049582,122230.0,122220.0,5.037e-05]
[1760007315449,1.06053582,122230.0,122220.0,5.037e-05]
[1760007316136,0.82885582,122230.0,122220.0,5.037e-05]
[1760007316347,1.06053582,122230.0,122220.0,5.037e-05]
[1760007317007,0.55186808,122230.0,122220.0,5.037e-05]
[1760007317250,1.07582956,122230.0,122220.0,5.037e-05]
[1760007317466,0.84414956,122230.0,122220.0,5.037e-05]
[1760007317689,1.07582956,122230.0,122220.0,5.037e-05]
[1760007318116,0.84414956,122230.0,122220.0,5.037e-05]
[1760007318325,1.07582956,122230.0,122220.0,5.037e-05]
[1760007318925,0.84414956,122230.0,122220.0,5.037e-05]
[1760007319149,0.76849808,122230.0,122220.0,5.037e-05]
[1760007321103,0.53681808,122230.0,122220.0,5.037e-05]
[1760007321325,0.29776833,122230.0,122220.0,5.037e-05]
[1760007321532,0.76853808,122230.0,122220.0,5.037e-05]
[1760007321741,0.84853488,122230.0,122220.0,5.037e-05]
[1760007321971,0.61681488,122230.0,122220.0,5.037e-05]
[1760007322179,0.84853488,122230.0,122220.0,5.037e-05]
[1760007325215,0.86381616,122230.0,122220.0,5.037e-05]
[1760007325688,0.63209616,122230.0,122220.0,5.037e-05]
[1760007325810,0.86377616,122230.0,122220.0,5.037e-05]
[1760007327186,0.61681488,122230.0,122220.0,5.037e-05]
[1760007327339,0.84849488,122230.0,122220.0,5.037e-05]
[1760007327754,0.76849808,122230.0,122220.0,5.037e-05]
[1760007327967,0.68537602,122230.0,122220.0,5.037e-05]
[1760007328174,0.45369602,122230.0,122220.0,5.037e-05]
[1760007328408,0.68537602,122230.0,122220.0,5.037e-05]
[1760007329589,0.45369602,122230.0,122220.0,5.037e-05]
[1760007329912,0.76537282,122230.0,122220.0,0.02138037]
[1760007330075,0.53369282,122230.0,122220.0,5.037e-05]
[1760007330330,0.76537282,122230.0,122220.0,5.037e-05]
[1760007330774,0.78065564,122230.0,122220.0,5.037e-05]
[1760007335835,0.78064743,122230.0,122220.0,5.037e-05]
[1760007336036,0.78065653,122230.0,122220.0,5.037e-05]
[1760007338197,0.78066723,122230.0,122220.0,5.037e-05]
[1760007339435,0.78067199,122230.0,122220.0,5.037e-05]
[1760007342752,0.78071614,122230.0,122220.0,5.037e-05]
[1760007345000,0.54903614,122230.0,122220.0,5.037e-05]
[1760007345144,0.78071614,122230.0,122220.0,5.037e-05]
[1760007346179,0.86585123,122230.0,122220.0,5.037e-05]
[1760007346592,0.86585123,122230.0,122220.0,0.50051176]
[1760007346593,0.05107952,122230.0,122220.0,0.50051176]
[1760007346799,0.01117517,122230.0,122220.0,0.97442072]
[1760007347059,0.00350934,122230.0,122220.0,0.97442072]
[1760007347237,0.00350934,122230.0,122220.0,0.74234072]
[1760007347573,0.00350934,122230.0,122220.0,0.88930072]
[1760007347773,0.00350934,122230.0,122220.0,0.97442072]
[1760007348343,0.00150934,122230.0,122220.0,0.97442072]
[1760007348705,0.00150934,122230.0,122220.0,0.97542072]
[1760007348911,0.00050934,122230.0,122220.0,0.97542072]
[1760007349218,0.00050934,122230.0,122220.0,1.03682908]
[1760007349423,0.00050934,122230.0,122220.0,1.03882908]
[1760007349654,0.00050934,122230.0,122220.0,1.03982908]
[1760007349851,0.00050934,122230.0,122220.0,0.80574908]
[1760007350072,0.00050934,122230.0,122220.0,1.03778908]
[1760007350399,0.00050934,122230.0,122220.0,1.03978908]
[1760007353886,0.00050934,122230.0,122220.0,0.46828012]
[1760007354085,0.00050934,122230.0,122220.0,1.03970908]
[1760007358996,0.00050934,122230.0,122220.0,0.80774908]
[1760007359199,0.00050934,122230.0,122220.0,1.03970908]
[1760007360419,0.00050934,122230.0,122220.0,1.03962908]
[1760007360626,0.00050934,122230.0,122220.0,0.80770908]
[1760007360831,0.00050934,122230.0,122220.0,1.03962908]
[1760007361898,0.00050934,122230.0,122220.0,1.06419225]
[1760007362853,0.00050934,122230.0,122220.0,1.03962908]
[1760007364503,0.00050934,122230.0,122220.0,0.72262908]
[1760007364705,0.00050934,122230.0,122220.0,1.03954908]
[1760007364917,0.00050934,122230.0,122220.0,0.72262908]
[1760007365124,0.00050934,122230.0,122220.0,1.03954908]
[1760007368827,0.00050934,122230.0,122220.0,0.97714072]
[1760007369858,0.00050934,122230.0,122220.0,0.65922072]
[1760007370063,0.00050934,122230.0,122220.0,0.40283176]
[1760007370273,0.00050934,122230.0,122220.0,0.97406072]
[1760007370481,0.00050934,122230.0,122220.0,0.74230072]
[1760007370698,0.00050934,122230.0,122220.0,0.97410072]
[1760007371158,0.00050934,122230.0,122220.0,0.97610072]
[1760007371611,0.00050934,122230.0,122220.0,0.97810072]
[1760007371837,0.00050934,122230.0,122220.0,0.63863176]
[1760007372068,0.00050934,122230.0,122220.0,0.97810072]
[1760007372306,0.00050934,122230.0,122220.0,0.74630072]
[1760007372529,0.00050934,122230.0,122220.0,0.97810072]
[1760007374688,0.00050934,122230.0,122220.0,0.97814072]
[1760007377383,0.00050934,122230.0,122220.0,0.89302072]
[1760007377602,0.00050934,122230.0,122220.0,0.63863176]
[1760007377822,0.00050934,122230.0,122220.0,0.74630072]
[1760007378041,0.00050934,122230.0,122220.0,0.97806072]
[1760007378251,0.00050934,122230.0,122220.0,0.66122072]
[1760007378466,0.00050934,122230.0,122220.0,0.97806072]
[1760007378915,0.00050934,122230.0,122220.0,0.66122072]
[1760007379123,0.00050934,122230.0,122220.0,0.97810072]
[1760007379758,0.00050934,122230.0,122220.0,0.63863176]
[1760007379989,0.00050934,122230.0,122220.0,0.97810072]
[1760007381300,0.00050934,122230.0,122220.0,0.97806072]
[1760007382263,0.00050934,122230.0,122220.0,0.66122072]
[1760007382437,0.00050934,122230.0,122220.0,0.97806072]
[1760007383240,0.00050934,122230.0,122220.0,0.63855176]
[1760007383442,0.00050934,122230.0,122220.0,0.97802072]
[1760007383877,0.00050934,122230.0,122220.0,0.74630072]
[1760007384037,0.00050934,122230.0,122220.0,0.97802072]
[1760007385888,0.00050934,122230.0,122220.0,1.31752968]
[1760007385889,1e-08,122230.0,122220.0,1.31752968]
[1760007386059,1e-08,122230.0,122220.0,1.33842407]
[1760007386332,1e-08,122230.0,122220.0,0.74630072]
[1760007386505,1e-08,122230.0,122220.0,0.97806072]
[1760007388674,1e-08,122230.0,122220.0,0.74630072]
[1760007388843,1e-08,122230.0,122220.0,0.97806072]
[1760007391114,1e-08,122230.0,122220.0,1.00262349]
[1760007393018,1e-08,122230.0,122220.0,1.00254349]
[1760007394510,1e-08,122230.0,122220.0,0.77086349]
[1760007394710,1e-08,122230.0,122220.0,1.00250349]
[1760007399661,1e-08,122230.0,122220.0,0.34631453]
[1760007399872,1e-08,122230.0,122220.0,1.00246349]
[1760007402055,1e-08,122230.0,122220.0,0.97790072]
[1760007402787,1e-08,122230.0,122220.0,0.66122072]
[1760007402964,1e-08,122230.0,122220.0,0.32175176]
[1760007403167,1e-08,122230.0,122220.0,0.97790072]
[1760007406204,1e-08,122230.0,122220.0,1.1473698]
[1760007409298,1e-08,122230.0,122220.0,0.89290078]
[1760007410016,1e-08,122230.0,122220.0,1.1473698]
[1760007413195,1e-08,122230.0,122220.0,1.40183882]
[1760007413392,1e-08,122230.0,122220.0,1.17023882]
[1760007413789,1e-08,122230.0,122220.0,1.40183882]
[1760007415148,1e-08,122230.0,122220.0,1.17023882]
[1760007415352,1e-08,122230.0,122220.0,0.63843176]
[1760007415564,1e-08,122230.0,122220.0,1.1473698]
[1760007418373,1e-08,122230.0,122220.0,1.40183882]
[1760007418789,1e-08,122230.0,122220.0,1.17023882]
[1760007419005,1e-08,122230.0,122220.0,0.9157698]
[1760007419212,1e-08,122230.0,122220.0,1.1473698]
[1760007420970,1e-08,122230.0,122220.0,0.8306898]
[1760007421176,1e-08,122230.0,122220.0,1.1473698]
[1760007421423,1e-08,122230.0,122220.0,0.32175176]
[1760007421619,1e-08,122230.0,122220.0,1.1473698]
[1760007422736,1e-08,122230.0,122220.0,0.9157698]
[1760007422954,1e-08,122230.0,122220.0,1.40183882]
[1760007423608,1e-08,122230.0,122220.0,1.1473698]
[1760007425108,1e-08,122230.0,122220.0,0.8306898]
[1760007425353,1e-08,122230.0,122220.0,1.1473698]
[1760007427560,1e-08,122230.0,122220.0,1.1464888]
[1760007428999,1e-08,122230.0,122220.0,0.63755076]
[1760007429327,1e-08,122230.0,122220.0,1.1464888]
[1760007429525,1e-08,122230.0,122220.0,0.9148888]
[1760007429719,1e-08,122230.0,122220.0,1.1464888]
[1760007430514,1e-08,122230.0,122220.0,0.63755076]
[1760007430725,1e-08,122230.0,122220.0,1.1464888]
[1760007432370,1e-08,122230.0,122220.0,0.63755076]
[1760007432633,1e-08,122230.0,122220.0,1.1464888]
[1760007435870,1e-08,122230.0,122220.0,0.63755076]
[1760007436127,1e-08,122230.0,122220.0,1.1464888]
[1760007439881,1e-08,122230.0,122220.0,0.9148888]
[1760007440088,1e-08,122230.0,122220.0,1.1464888]
[1760007440879,1e-08,122230.0,122220.0,0.9148888]
[1760007441087,1e-08,122230.0,122220.0,1.4864888]
[1760007454082,1e-08,122230.0,122220.0,0.97755076]
[1760007454290,1e-08,122230.0,122220.0,1.50935782]
[1760007454881,1e-08,122230.0,122220.0,1.74091782]
[1760007456474,1e-08,122230.0,122220.0,1.50935782]
[1760007456789,1e-08,122230.0,122220.0,1.74091782]
[1760007459612,1e-08,122230.0,122220.0,1.1698088]
[1760007459837,1e-08,122230.0,122220.0,1.4864488]
[1760007462668,1e-08,122230.0,122220.0,1.27945277]
[1760007462897,1e-08,122230.0,122220.0,1.51101277]
[1760007463987,1e-08,122230.0,122220.0,0.68543473]
[1760007464197,1e-08,122230.0,122220.0,1.51101277]